lending/lending_fUSD_20241229
["ID","MTS","AMOUNT","RATE_DAILY","PERIOD"]
[347085098,1735491075433,-500.0,0.00014823,2]
[347085099,1735491075443,-2866.13,0.00014823,2]
[347085100,1735491075452,-500.0,0.00014823,2]
[347085101,1735491075462,-369.17290897,0.00014823,2]
[347085102,1735491075472,-500.0,0.00014823,2]
[347085103,1735491075483,-500.0,0.00014823,2]
[347085104,1735491075494,-500.0,0.00014823,2]
[347085105,1735491075504,-500.0,0.00014823,2]
[347085106,1735491075514,-174.30308426,0.00014823,2]
[347085107,1735491075525,-500.0,0.00014823,2]
[347085108,1735491075534,-500.0,0.00014823,2]
[347085109,1735491075544,-1154.75,0.00014823,2]
[347085110,1735491075553,-1890.37,0.00014823,2]
[347085111,1735491075563,-781.33,0.00014823,2]
[347085112,1735491075573,-1791.32,0.00014823,2]
[347085113,1735491075585,-1113.85,0.00014823,2]
[347085114,1735491075595,-500.0,0.00014823,2]
[347085115,1735491075604,-695.21,0.00014823,2]
[347085116,1735491075614,-516.34,0.00014823,2]
[347085117,1735491075624,-822.12,0.00014823,2]
[347085118,1735491075634,-332.67089106,0.00014823,2]
[347085119,1735491075644,-500.0,0.00014823,2]
[347085120,1735491075653,-577.92,0.00014823,2]
[347085121,1735491075663,-870.38,0.00014823,2]
[347085122,1735491075674,-500.0,0.00014823,2]
[347085123,1735491075686,-500.0,0.00014823,2]
[347085124,1735491075697,-500.0,0.00014823,2]
[347085125,1735491075706,-206.03120113,0.00014823,2]
[347085126,1735491075716,-500.0,0.00014823,2]
[347085127,1735491075726,-3278.13,0.00014823,2]
[347085128,1735491075736,-1015.64,0.00014823,2]
[347085129,1735491075934,-500.0,0.00014823,2]
[347085130,1735491075949,-500.0,0.00014823,2]
[347085131,1735491075959,-620.96,0.00014823,2]
[347085132,1735491075968,-1840.21,0.00014823,2]
[347085133,1735491075978,-704.14,0.00014823,2]
[347085134,1735491075988,-816.1,0.00014824,2]
[347085135,1735491075997,-500.0,0.00014824,2]
[347085136,1735491076007,-590.14,0.00014824,2]
[347085137,1735491076017,-500.0,0.00014824,2]
[347085138,1735491076027,-1340.36,0.00014824,2]
[347085139,1735491076037,-762.4,0.00014824,2]
[347085140,1735491076046,-500.0,0.00014824,2]
[347085141,1735491076056,-172.4469159,0.00014824,2]
[347085142,1735491076066,-500.0,0.00014824,2]
[347085143,1735491076076,-2344.33,0.00014824,2]
[347085144,1735491076088,-909.47,0.00014824,2]
[347085145,1735491076098,-865.68,0.00014824,2]
[347085146,1735491076112,-500.0,0.00014824,2]
[347085147,1735491076121,-701.25,0.00014824,2]
[347085148,1735491076131,-602.07,0.00014824,2]
[347085149,1735491076140,-600.4,0.00014824,2]
[347085150,1735491076150,-500.0,0.00014824,2]
[347085151,1735491076159,-500.0,0.00014824,2]
[347085152,1735491076169,-1953.32,0.00014824,2]
[347085153,1735491076178,-500.0,0.00014824,2]
[347085154,1735491076189,-500.0,0.00014824,2]
[347085155,1735491076198,-621.43,0.00014824,2]
[347085156,1735491076208,-873.53,0.00014824,2]
[347085157,1735491076218,-500.0,0.00014824,2]
[347085158,1735491076228,-722.38,0.00014824,2]
[347085159,1735491076238,-500.0,0.00014824,2]
[347085160,1735491076247,-2838.92,0.00014824,2]
[347085161,1735491076257,-3628.4,0.00014824,2]
[347085162,1735491076267,-876.23,0.00014824,2]
[347085163,1735491076278,-3692.81,0.00014824,2]
[347085164,1735491076288,-500.0,0.00014824,2]
[347085165,1735491076297,-1101.36,0.00014824,2]
[347085166,1735491076307,-870.98,0.00014824,2]
[347085167,1735491076317,-500.0,0.00014824,2]
[347085168,1735491076327,-1348.28,0.00014824,2]
[347085169,1735491076337,-1836.05,0.00014824,2]
[347085170,1735491076346,-500.0,0.00014825,2]
[347085171,1735491076356,-999.87,0.00014825,2]
[347085172,1735491076366,-510.19,0.00014825,2]
[347085173,1735491076377,-1921.52,0.00014825,2]
[347085174,1735491076386,-546.78,0.00014825,2]
[347085175,1735491076396,-3871.1,0.00014825,2]
[347085176,1735491076405,-592.58,0.00014825,2]
[347085177,1735491076414,-513.22,0.00014825,2]
[347085178,1735491076424,-1175.67,0.00014825,2]
[347085179,1735491076434,-500.0,0.00014825,2]
[347085180,1735491076443,-500.0,0.00014825,2]
[347085181,1735491076453,-515.44,0.00014826,2]
[347085182,1735491076463,-615.03,0.00014826,2]
[347085183,1735491076474,-500.0,0.00014826,2]
[347085184,1735491076483,-899.47,0.00014826,2]
[347085185,1735491076493,-500.0,0.00014826,2]
[347085186,1735491076503,-815.97,0.00014826,2]
[347085187,1735491076512,-18568.48,0.00014826,2]
[347085188,1735491076522,-500.0,0.00014826,2]
[347085189,1735491076531,-545.9,0.00014826,2]
[347085190,1735491076540,-969.49,0.00014826,2]
[347085191,1735491076551,-500.0,0.00014826,2]
[347085192,1735491076560,-1026.67,0.00014826,2]
[347085193,1735491076570,-500.0,0.00014826,2]
[347085194,1735491076579,-2110.5,0.00014826,2]
[347085195,1735491076589,-500.0,0.00014826,2]
[347085196,1735491076598,-703.26,0.00014826,2]
[347085197,1735491076608,-510.62,0.00014826,2]
[347085198,1735491076618,-500.0,0.00014826,2]
[347085199,1735491076627,-500.0,0.00014826,2]
[347085200,1735491076638,-500.0,0.00014826,2]
[347085201,1735491076647,-570.93,0.00014826,2]
[347085202,1735491076657,-1499.18,0.00014827,2]
[347085203,1735491076667,-500.0,0.00014827,2]
[347085204,1735491076676,-578.37,0.00014827,2]
[347085205,1735491076686,-500.0,0.00014827,2]
[347085206,1735491076696,-548.58,0.00014827,2]
[347085207,1735491076706,-500.0,0.00014827,2]
[347085208,1735491076716,-700.84,0.00014827,2]
[347085209,1735491076726,-2940.43,0.00014827,2]
[347085210,1735491076736,-5636.03,0.00014827,2]
[347085211,1735491076745,-556.4,0.00014827,2]
[347085212,1735491076755,-500.0,0.00014827,2]
[347085213,1735491076764,-1813.25,0.00014827,2]
[347085214,1735491076774,-640.38,0.00014827,2]
[347085215,1735491076784,-15027.68,0.00014827,2]
[347085216,1735491076793,-500.0,0.00014827,2]
[347085217,1735491076803,-500.0,0.00014827,2]
[347085218,1735491076813,-1140.36,0.00014827,2]
[347085219,1735491076823,-4325.16,0.00014828,2]
[347085220,1735491076832,-500.0,0.00014828,2]
[347085221,1735491076842,-1186.66,0.00014828,2]
[347085222,1735491076851,-692.34,0.00014828,2]
[347085223,1735491076862,-150.0,0.00014907,2]
[347085224,1735491076872,-500.0,0.00014959,2]
[347085225,1735491076882,-150.0,0.00014974,2]
[347085226,1735491076891,-150.0,0.00014977,2]
[347085227,1735491076901,-956.63923777,0.00014997,2]
[347085228,1735491076911,-500.0,0.00014998,2]
[347085229,1735491076920,-500.0,0.00014998,2]
[347085230,1735491076930,-791.71,0.00014998,2]
[347085231,1735491076940,-500.0,0.00014998,2]
[347085232,1735491076950,-950.63,0.00014998,2]
[347085233,1735491076960,-1210.43,0.00014998,2]
[347085234,1735491076969,-491.80513647,0.00014998,2]
[347085235,1735491076979,-399.56426375,0.00014998,2]
[347085236,1735491076989,-500.0,0.00014998,2]
[347085237,1735491076999,-355.56883024,0.00014998,2]
[347085238,1735491077008,-445.03060694,0.00014998,2]
[347085239,1735491077018,-246.81052221,0.00014998,2]
[347085240,1735491077028,-500.0,0.00014998,2]
[347085241,1735491077037,-1000.0,0.00014999,2]
[347085242,1735491077047,-512.4495211,0.00015,2]
[347085243,1735491077056,-10278.0,0.00015,2]
[347085244,1735491077066,-300.0,0.00015068,2]
[347085245,1735491077076,-419.82,0.00015077,2]
[347085246,1735491077086,-1159.18,0.00015097,2]
[347085247,1735491077096,-520.55,0.00015097,2]
[347085248,1735491077108,-705.2,0.00015097,2]
[347085249,1735491077118,-150.701539,0.00015097,2]
[347085250,1735491077127,-2192.36,0.00015097,2]
[347085251,1735491077137,-2173.71,0.00015097,2]
[347085252,1735491077148,-1409.21,0.00015097,2]
[347085253,1735491077158,-1775.22,0.00015097,2]
[347085254,1735491077167,-279.72417878,0.00015097,2]
[347085255,1735491077177,-500.0,0.00015097,2]
[347085256,1735491077187,-500.0,0.00015097,2]
[347085257,1735491077198,-2866.13,0.00015097,2]
[347085258,1735491077207,-500.0,0.00015097,2]
[347085259,1735491077217,-500.0,0.00015097,2]
[347085260,1735491077227,-153.45729601,0.00015097,2]
[347085261,1735491077237,-500.0,0.00015097,2]
[347085262,1735491077247,-500.0,0.00015097,2]
[347085263,1735491077257,-500.0,0.00015097,2]
[347085264,1735491077266,-170.97720928,0.00015097,2]
[347085265,1735491077276,-1154.75,0.00015097,2]
[347085266,1735491077285,-1890.37,0.00015097,2]
[347085267,1735491077295,-781.33,0.00015097,2]
[347085268,1735491077304,-1791.32,0.00015097,2]
[347085269,1735491077314,-1113.85,0.00015097,2]
[347085270,1735491077323,-500.0,0.00015097,2]
[347085271,1735491077332,-695.21,0.00015097,2]
[347085272,1735491077342,-516.34,0.00015097,2]
[347085273,1735491077351,-822.12,0.00015097,2]
[347085274,1735491077361,-500.0,0.00015097,2]
[347085275,1735491077370,-577.92,0.00015097,2]
[347085276,1735491077380,-870.38,0.00015097,2]
[347085277,1735491077389,-262.53969214,0.00015097,2]
[347085278,1735491077399,-500.0,0.00015097,2]
[347085279,1735491077409,-296.62348447,0.00015097,2]
[347085280,1735491077418,-270.67652506,0.00015097,2]
[347085281,1735491077428,-3278.13,0.00015097,2]
[347085282,1735491077437,-1015.64,0.00015097,2]
[347085283,1735491077447,-500.0,0.00015097,2]
[347085284,1735491077457,-500.0,0.00015097,2]
[347085285,1735491077466,-620.96,0.00015097,2]
[347085286,1735491077476,-1840.21,0.00015097,2]
[347085287,1735491077486,-704.14,0.00015097,2]
[347085288,1735491077495,-816.1,0.00015098,2]
[347085289,1735491077504,-500.0,0.00015098,2]
[347085290,1735491077514,-590.14,0.00015098,2]
[347085291,1735491077524,-500.0,0.00015098,2]
[347085292,1735491077533,-1340.36,0.00015098,2]
[347085293,1735491077543,-762.4,0.00015098,2]
[347085294,1735491077552,-548.23202718,0.00015098,2]
[347085295,1735491077561,-500.0,0.00015098,2]
[347085296,1735491077571,-2344.33,0.00015098,2]
[347085297,1735491077580,-909.47,0.00015098,2]
[347085298,1735491077590,-865.68,0.00015098,2]
[347085299,1735491077602,-500.0,0.00015098,2]
[347085300,1735491077611,-701.25,0.00015098,2]
[347085301,1735491077621,-602.07,0.00015098,2]
[347085302,1735491077631,-500.0,0.00015098,2]
[347085303,1735491077641,-428.99,0.00015098,2]
[347085304,1735491077650,-1953.32,0.00015098,2]
[347085305,1735491077660,-500.0,0.00015098,2]
[347085306,1735491077669,-500.0,0.00015098,2]
[347085307,1735491077678,-621.43,0.00015098,2]
[347085308,1735491077688,-873.53,0.00015098,2]
[347085309,1735491077698,-500.0,0.00015098,2]
[347085310,1735491077707,-722.38,0.00015098,2]
[347085311,1735491077717,-500.0,0.00015098,2]
[347085312,1735491077726,-2838.92,0.00015098,2]
[347085313,1735491077736,-3628.4,0.00015098,2]
[347085314,1735491077745,-876.23,0.00015098,2]
[347085315,1735491077755,-3692.81,0.00015098,2]
[347085316,1735491077764,-500.0,0.00015098,2]
[347085317,1735491077774,-1101.36,0.00015098,2]
[347085318,1735491077784,-870.98,0.00015098,2]
[347085319,1735491077793,-500.0,0.00015098,2]
[347085320,1735491077802,-1348.28,0.00015098,2]
[347085321,1735491077812,-1836.05,0.00015098,2]
[347085322,1735491077822,-500.0,0.00015099,2]
[347085323,1735491077832,-999.87,0.00015099,2]
[347085324,1735491077841,-510.19,0.00015099,2]
[347085325,1735491077851,-1921.52,0.00015099,2]
[347085326,1735491077861,-546.78,0.00015099,2]
[347085327,1735491077871,-3871.1,0.00015099,2]
[347085328,1735491077880,-592.58,0.00015099,2]
[347085329,1735491077890,-513.22,0.00015099,2]
[347085330,1735491077899,-1175.67,0.00015099,2]
[347085331,1735491077909,-500.0,0.00015099,2]
[347085332,1735491077918,-173.19780118,0.00015099,2]
[347085333,1735491077928,-515.44,0.000151,2]
[347085334,1735491077937,-615.03,0.000151,2]
[347085335,1735491077947,-500.0,0.000151,2]
[347085336,1735491077956,-899.47,0.000151,2]
[347085337,1735491077965,-500.0,0.000151,2]
[347085338,1735491077975,-815.97,0.000151,2]
[347085339,1735491077984,-18568.48,0.000151,2]
[347085340,1735491077993,-500.0,0.000151,2]
[347085341,1735491078003,-545.9,0.000151,2]
[347085342,1735491078012,-969.49,0.000151,2]
[347085343,1735491078022,-500.0,0.000151,2]
[347085344,1735491078032,-1026.67,0.000151,2]
[347085345,1735491078041,-500.0,0.000151,2]
[347085346,1735491078050,-2110.5,0.000151,2]
[347085347,1735491078060,-500.0,0.000151,2]
[347085348,1735491078069,-703.26,0.000151,2]
[347085349,1735491078079,-510.62,0.000151,2]
[347085350,1735491078089,-500.0,0.000151,2]
[347085351,1735491078098,-500.0,0.000151,2]
[347085352,1735491078111,-500.0,0.000151,2]
[347085353,1735491078122,-570.93,0.000151,2]
[347085354,1735491078132,-1499.18,0.00015101,2]
[347085355,1735491078142,-500.0,0.00015101,2]
[347085356,1735491078153,-578.37,0.00015101,2]
[347085357,1735491078162,-500.0,0.00015101,2]
[347085358,1735491078173,-548.58,0.00015101,2]
[347085359,1735491078184,-500.0,0.00015101,2]
[347085360,1735491078195,-700.84,0.00015101,2]
[347085361,1735491078205,-2940.43,0.00015101,2]
[347085362,1735491078215,-5636.03,0.00015101,2]
[347085363,1735491078224,-556.4,0.00015101,2]
[347085364,1735491078234,-500.0,0.00015101,2]
[347085365,1735491078244,-1813.25,0.00015101,2]
[347085366,1735491078254,-640.38,0.00015101,2]
[347085367,1735491078331,-15027.68,0.00015101,2]
[347085368,1735491078342,-500.0,0.00015101,2]
[347085369,1735491078352,-500.0,0.00015101,2]
[347085370,1735491078362,-1140.36,0.00015101,2]
[347085371,1735491078371,-4325.16,0.00015102,2]
[347085372,1735491078381,-500.0,0.00015102,2]
[347085373,1735491078390,-1186.66,0.00015102,2]
[347085374,1735491078400,-692.34,0.00015102,2]
[347085375,1735491078410,-150.0,0.00015128,2]
[347085376,1735491078420,-150.0,0.0001518,2]
[347085377,1735491078430,-150.0,0.00015237,2]
[347085378,1735491078439,-536.4588615,0.00015272,2]
[347085379,1735491078449,-500.0,0.00015272,2]
[347085380,1735491078458,-791.71,0.00015272,2]
[347085381,1735491078467,-500.0,0.00015272,2]
[347085382,1735491078476,-950.63,0.00015272,2]
[347085383,1735491078485,-1210.43,0.00015272,2]
[347085384,1735491078495,-500.0,0.00015272,2]
[347085385,1735491078503,-587.09061654,0.00015272,2]
[347085386,1735491078514,-150.0,0.00015281,2]
[347085387,1735491078525,-150.0,0.00015311,2]
[347085388,1735491078535,-500.0,0.00015343,2]
[347085389,1735491078545,-150.0,0.0001536,2]
[347085390,1735491078555,-800.0,0.0001537,2]
[347085391,1735491078565,-1159.18,0.00015371,2]
[347085392,1735491078574,-520.55,0.00015371,2]
[347085393,1735491078583,-705.2,0.00015371,2]
[347085394,1735491078593,-150.701539,0.00015371,2]
[347085395,1735491078602,-2192.36,0.00015371,2]
[347085396,1735491078612,-2173.71,0.00015371,2]
[347085397,1735491078622,-1409.21,0.00015371,2]
[347085398,1735491078632,-1775.22,0.00015371,2]
[347085399,1735491078641,-500.0,0.00015371,2]
[347085400,1735491078651,-500.0,0.00015371,2]
[347085401,1735491078661,-2866.13,0.00015371,2]
[347085402,1735491078671,-500.0,0.00015371,2]
[347085403,1735491078681,-500.0,0.00015371,2]
[347085404,1735491078690,-500.0,0.00015371,2]
[347085405,1735491078700,-500.0,0.00015371,2]
[347085406,1735491078709,-619.42661032,0.00015371,2]
[347085407,1735491078719,-1154.75,0.00015371,2]
[347085408,1735491078728,-781.33,0.00015371,2]
[347085409,1735491078737,-1890.37,0.00015371,2]
[347085410,1735491078746,-1791.32,0.00015371,2]
[347085411,1735491078756,-1113.85,0.00015371,2]
[347085412,1735491078765,-630.36977745,0.00015371,2]
[347085413,1735491078775,-695.21,0.00015371,2]
[347085414,1735491078784,-516.34,0.00015371,2]
[347085415,1735491078794,-822.12,0.00015371,2]
[347085416,1735491078803,-368.16680343,0.00015371,2]
[347085417,1735491078813,-577.92,0.00015371,2]
[347085418,1735491078822,-870.38,0.00015371,2]
[347085419,1735491078832,-500.0,0.00015371,2]
[347085420,1735491078841,-3278.13,0.00015371,2]
[347085421,1735491078851,-1015.64,0.00015371,2]
[347085422,1735491078861,-500.0,0.00015371,2]
[347085423,1735491078870,-500.0,0.00015371,2]
[347085424,1735491078880,-620.96,0.00015371,2]
[347085425,1735491078889,-1840.21,0.00015371,2]
[347085426,1735491078898,-704.14,0.00015371,2]
[347085427,1735491078908,-816.1,0.00015372,2]
[347085428,1735491078917,-500.0,0.00015372,2]
[347085429,1735491078927,-590.14,0.00015372,2]
[347085430,1735491078937,-563.94985507,0.00015372,2]
[347085431,1735491078946,-1340.36,0.00015372,2]
[347085432,1735491078957,-762.4,0.00015372,2]
[347085433,1735491078966,-445.73,0.00015372,2]
[347085434,1735491078975,-2344.33,0.00015372,2]
[347085435,1735491078985,-909.47,0.00015372,2]
[347085436,1735491078995,-865.68,0.00015372,2]
[347085437,1735491079004,-354.48382278,0.00015372,2]
[347085438,1735491079013,-701.25,0.00015372,2]
[347085439,1735491079023,-602.07,0.00015372,2]
[347085440,1735491079033,-500.0,0.00015372,2]
[347085441,1735491079043,-1953.32,0.00015372,2]
[347085442,1735491079052,-500.0,0.00015372,2]
[347085443,1735491079062,-604.69,0.00015372,2]
[347085444,1735491079071,-621.43,0.00015372,2]
[347085445,1735491079081,-873.53,0.00015372,2]
[347085446,1735491079090,-500.0,0.00015372,2]
[347085447,1735491079099,-722.38,0.00015372,2]
[347085448,1735491079114,-606.07943251,0.00015372,2]
[347085449,1735491079123,-500.0,0.00015372,2]
[347085450,1735491079132,-2838.92,0.00015372,2]
[347085451,1735491079142,-707.48,0.00015372,2]
[347085452,1735491079151,-3628.4,0.00015372,2]
[347085453,1735491079161,-876.23,0.00015372,2]
[347085454,1735491079170,-3692.81,0.00015372,2]
[347085455,1735491079181,-500.0,0.00015372,2]
[347085456,1735491079191,-3200.69,0.00015372,2]
[347085457,1735491079200,-1101.36,0.00015372,2]
[347085458,1735491079210,-870.98,0.00015372,2]
[347085459,1735491079219,-500.0,0.00015372,2]
[347085460,1735491079228,-1348.28,0.00015372,2]
[347085461,1735491079237,-1836.05,0.00015372,2]
[347085462,1735491079247,-500.0,0.00015373,2]
[347085463,1735491079257,-999.87,0.00015373,2]
[347085464,1735491079266,-510.19,0.00015373,2]
[347085465,1735491079277,-1921.52,0.00015373,2]
[347085466,1735491079286,-546.78,0.00015373,2]
[347085467,1735491079295,-3871.1,0.00015373,2]
[347085468,1735491079305,-592.58,0.00015373,2]
[347085469,1735491079314,-513.22,0.00015373,2]
[347085470,1735491079324,-1175.67,0.00015373,2]
[347085471,1735491079334,-500.0,0.00015373,2]
[347085472,1735491079344,-515.44,0.00015374,2]
[347085473,1735491079354,-615.03,0.00015374,2]
[347085474,1735491079364,-600.68807644,0.00015374,2]
[347085475,1735491079373,-899.47,0.00015374,2]
[347085476,1735491079384,-500.0,0.00015374,2]
[347085477,1735491079394,-815.97,0.00015374,2]
[347085478,1735491079404,-18568.48,0.00015374,2]
[347085479,1735491079414,-500.0,0.00015374,2]
[347085480,1735491079423,-545.9,0.00015374,2]
[347085481,1735491079432,-969.49,0.00015374,2]
[347085482,1735491079442,-500.0,0.00015374,2]
[347085483,1735491079453,-1026.67,0.00015374,2]
[347085484,1735491079463,-500.0,0.00015374,2]
[347085485,1735491079473,-2110.5,0.00015374,2]
[347085486,1735491079482,-500.0,0.00015374,2]
[347085487,1735491079493,-703.26,0.00015374,2]
[347085488,1735491079502,-510.62,0.00015374,2]
[347085489,1735491079511,-500.0,0.00015374,2]
[347085490,1735491079522,-500.0,0.00015374,2]
[347085491,1735491079533,-500.0,0.00015374,2]
[347085492,1735491079543,-570.93,0.00015374,2]
[347085493,1735491079553,-1499.18,0.00015375,2]
[347085494,1735491079563,-500.0,0.00015375,2]
[347085495,1735491079573,-578.37,0.00015375,2]
[347085496,1735491079583,-500.0,0.00015375,2]
[347085497,1735491079593,-548.58,0.00015375,2]
[347085498,1735491079603,-500.0,0.00015375,2]
[347085499,1735491079613,-700.84,0.00015375,2]
[347085500,1735491079623,-2940.43,0.00015375,2]
[347085501,1735491079633,-5636.03,0.00015375,2]
[347085502,1735491079643,-556.4,0.00015375,2]
[347085503,1735491079652,-500.0,0.00015375,2]
[347085504,1735491079662,-1813.25,0.00015375,2]
[347085505,1735491079672,-640.38,0.00015375,2]
[347085506,1735491079681,-15027.68,0.00015375,2]
[347085507,1735491079691,-500.0,0.00015375,2]
[347085508,1735491079701,-500.0,0.00015375,2]
[347085509,1735491079710,-1140.36,0.00015375,2]
[347085510,1735491079719,-4325.16,0.00015376,2]
[347085511,1735491079729,-561.82746324,0.00015376,2]
[347085512,1735491079738,-1186.66,0.00015376,2]
[347085513,1735491079748,-692.34,0.00015376,2]
[347085514,1735491079758,-150.0,0.00015386,2]
[347085515,1735491079767,-152.0,0.00015431,3]
[347085516,1735491079778,-150.0,0.00015477,2]
[347085517,1735491079788,-500.0,0.00015546,2]
[347085518,1735491079797,-791.71,0.00015546,2]
[347085519,1735491079807,-500.0,0.00015546,2]
[347085520,1735491079816,-950.63,0.00015546,2]
[347085521,1735491079826,-1210.43,0.00015546,2]
[347085522,1735491079835,-500.0,0.00015546,2]
[347085523,1735491079844,-1500.0,0.00015623,2]
[347085524,1735491079854,-1159.18,0.00015645,2]
[347085525,1735491079863,-520.55,0.00015645,2]
[347085526,1735491079873,-705.2,0.00015645,2]
[347085527,1735491079882,-150.701539,0.00015645,2]
[347085528,1735491079891,-2192.36,0.00015645,2]
[347085529,1735491079900,-2173.71,0.00015645,2]
[347085530,1735491079910,-1409.21,0.00015645,2]
[347085531,1735491079919,-1775.22,0.00015645,2]
[347085532,1735491079929,-500.0,0.00015645,2]
[347085533,1735491079938,-500.0,0.00015645,2]
[347085534,1735491079949,-2866.13,0.00015645,2]
[347085535,1735491079959,-403.00555644,0.00015645,2]
[347085536,1735491079970,-500.0,0.00015645,2]
[347085537,1735491079979,-192.67123175,0.00015645,2]
[347085538,1735491079988,-328.17242448,0.00015645,2]
[347085539,1735491079998,-1154.75,0.00015645,2]
[347085540,1735491080007,-781.33,0.00015645,2]
[347085541,1735491080017,-1890.37,0.00015645,2]
[347085542,1735491080027,-1791.32,0.00015645,2]
[347085543,1735491080037,-1113.85,0.00015645,2]
[347085544,1735491080047,-695.21,0.00015645,2]
[347085545,1735491080056,-516.34,0.00015645,2]
[347085546,1735491080066,-822.12,0.00015645,2]
[347085547,1735491080075,-577.92,0.00015645,2]
[347085548,1735491080084,-870.38,0.00015645,2]
[347085549,1735491080095,-500.0,0.00015645,2]
[347085550,1735491080107,-3278.13,0.00015645,2]
[347085551,1735491080117,-1015.64,0.00015645,2]
[347085552,1735491080127,-500.0,0.00015645,2]
[347085553,1735491080136,-362.36,0.00015645,2]
[347085554,1735491080146,-620.96,0.00015645,2]
[347085555,1735491080155,-704.14,0.00015645,2]
[347085556,1735491080165,-1840.21,0.00015645,2]
[347085557,1735491080174,-816.1,0.00015646,2]
[347085558,1735491080183,-500.0,0.00015646,2]
[347085559,1735491080193,-590.14,0.00015646,2]
[347085560,1735491080203,-1340.36,0.00015646,2]
[347085561,1735491080212,-762.4,0.00015646,2]
[347085562,1735491080222,-2344.33,0.00015646,2]
[347085563,1735491080231,-909.47,0.00015646,2]
[347085564,1735491080241,-865.68,0.00015646,2]
[347085565,1735491080251,-701.25,0.00015646,2]
[347085566,1735491080260,-602.07,0.00015646,2]
[347085567,1735491080270,-577.97045421,0.00015646,2]
[347085568,1735491080280,-1953.32,0.00015646,2]
[347085569,1735491080289,-500.0,0.00015646,2]
[347085570,1735491080298,-621.43,0.00015646,2]
[347085571,1735491080308,-873.53,0.00015646,2]
[347085572,1735491080317,-500.0,0.00015646,2]
[347085573,1735491080327,-722.38,0.00015646,2]
[347085574,1735491080336,-500.0,0.00015646,2]
[347085575,1735491080346,-2838.92,0.00015646,2]
[347085576,1735491080355,-707.48,0.00015646,2]
[347085577,1735491080365,-3628.4,0.00015646,2]
[347085578,1735491080375,-876.23,0.00015646,2]
[347085579,1735491080385,-3692.81,0.00015646,2]
[347085580,1735491080395,-500.0,0.00015646,2]
[347085581,1735491080405,-3200.69,0.00015646,2]
[347085582,1735491080414,-1101.36,0.00015646,2]
[347085583,1735491080424,-870.98,0.00015646,2]
[347085584,1735491080434,-500.0,0.00015646,2]
[347085585,1735491080443,-1348.28,0.00015646,2]
[347085586,1735491080452,-1836.05,0.00015646,2]
[347085587,1735491080463,-500.0,0.00015647,2]
[347085588,1735491080473,-999.87,0.00015647,2]
[347085589,1735491080483,-510.19,0.00015647,2]
[347085590,1735491080493,-1921.52,0.00015647,2]
[347085591,1735491080503,-546.78,0.00015647,2]
[347085592,1735491080513,-3871.1,0.00015647,2]
[347085593,1735491080525,-592.58,0.00015647,2]
[347085594,1735491080536,-513.22,0.00015647,2]
[347085595,1735491080545,-1175.67,0.00015647,2]
[347085596,1735491080556,-500.0,0.00015647,2]
[347085597,1735491080566,-515.44,0.00015648,2]